fUSD/lending_fUSD_20241106
["ID","MTS","AMOUNT","RATE_DAILY","PERIOD"]
[341474154,1730919038423,-2156.19319984,0.00031776,2]
[341474155,1730919038433,-2678.44,0.00031776,2]
[341474156,1730919038442,-500.0,0.00031776,2]
[341474157,1730919038452,-500.0,0.00031776,2]
[341474158,1730919038461,-614.45,0.00031777,2]
[341474159,1730919038471,-500.0,0.00031777,2]
[341474160,1730919038480,-500.0,0.00031777,2]
[341474161,1730919038489,-500.0,0.00031777,2]
[341474162,1730919038498,-500.0,0.00031777,2]
[341474163,1730919038508,-500.0,0.00031777,2]
[341474164,1730919038518,-500.0,0.00031777,2]
[341474165,1730919038527,-921.15,0.00031777,2]
[341474166,1730919038536,-500.66836898,0.00031777,2]
[341474167,1730919038545,-500.0,0.00031777,2]
[341474168,1730919038554,-500.0,0.00031777,2]
[341474169,1730919038563,-500.0,0.00031777,2]
[341474170,1730919038573,-500.0,0.00031777,2]
[341474171,1730919038583,-500.0,0.00031777,2]
[341474172,1730919038594,-500.0,0.00031777,2]
[341474173,1730919038603,-551.9,0.00031777,2]
[341474174,1730919038612,-500.0,0.00031777,2]
[341474175,1730919038621,-500.0,0.00031777,2]
[341474176,1730919038630,-500.0,0.00031777,2]
[341474177,1730919038639,-500.0,0.00031777,2]
[341474178,1730919038649,-626.64,0.00031777,2]
[341474179,1730919038660,-713.86,0.00031777,2]
[341474180,1730919038670,-500.0,0.00031777,2]
[341474181,1730919038679,-500.0,0.00031777,2]
[341474182,1730919038689,-500.0,0.00031777,2]
[341474183,1730919038698,-1611.13,0.00031777,2]
[341474184,1730919038708,-500.0,0.00031777,2]
[341474185,1730919038718,-500.0,0.00031777,2]
[341474186,1730919038727,-500.0,0.00031777,2]
[341474187,1730919038736,-500.0,0.00031777,2]
[341474188,1730919038746,-500.0,0.00031777,2]
[341474189,1730919038757,-500.0,0.00031777,2]
[341474190,1730919038766,-500.0,0.00031777,2]
[341474191,1730919038776,-500.0,0.00031777,2]
[341474192,1730919038786,-500.0,0.00031777,2]
[341474193,1730919038795,-500.0,0.00031777,2]
[341474194,1730919038805,-659.2,0.00031777,2]
[341474195,1730919038815,-500.0,0.00031777,2]
[341474196,1730919038824,-500.0,0.00031777,2]
[341474197,1730919038834,-500.0,0.00031777,2]
[341474198,1730919038844,-500.0,0.00031777,2]
[341474199,1730919038853,-500.0,0.00031777,2]
[341474200,1730919038863,-659.12,0.00031777,2]
[341474201,1730919038871,-500.0,0.00031777,2]
[341474202,1730919038881,-500.0,0.00031777,2]
[341474203,1730919038890,-1038.96,0.00031777,2]
[341474204,1730919038900,-500.0,0.00031777,2]
[341474205,1730919038909,-500.0,0.00031777,2]
[341474206,1730919038919,-500.0,0.00031777,2]
[341474207,1730919038928,-500.0,0.00031777,2]
[341474208,1730919038937,-51.30463851,0.00031777,2]
[341474209,1730919039041,-450.31011147,0.00031777,2]
[341474210,1730919039051,-500.0,0.00031777,2]
[341474211,1730919039060,-500.0,0.00031777,2]
[341474212,1730919039070,-509.30010563,0.00031777,2]
[341474213,1730919039088,-17.39989437,0.00031777,2]
[341474214,1730919039098,-500.0,0.00031777,2]
[341474215,1730919039108,-506.81698876,0.00031777,2]
[341474216,1730919039119,-500.0,0.00031777,2]
[341474217,1730919039129,-500.0,0.00031777,2]
[341474218,1730919039138,-975.82311687,0.00031777,2]
[341474219,1730919039151,-165.97688313,0.00031777,2]
[341474220,1730919039161,-698.73,0.00031777,2]
[341474221,1730919039170,-135.29311687,0.00031777,2]
[341474222,1730919039228,-364.70688313,0.00031777,2]
[341474223,1730919039237,-1537.0,0.00031777,2]
[341474224,1730919039248,-1857.54,0.00031777,2]
[341474225,1730919039259,-351.02370368,0.00031777,2]
[341474226,1730919039274,-148.97629632,0.00031777,2]
[341474227,1730919039283,-186.49545581,0.00031777,2]
[341474228,1730919039292,-199.546299,0.00031777,2]
[341474229,1730919039302,-2311.16496097,0.00031777,2]
[341474230,1730919039314,-552.01503903,0.00031777,2]
[341474231,1730919039324,-500.0,0.00031777,2]
[341474232,1730919039335,-222.78746,0.00031777,2]
[341474233,1730919039350,-500.0,0.00031777,2]
[341474234,1730919039361,-500.0,0.00031777,2]
[341474235,1730919039370,-261.17,0.00031777,2]
[341474236,1730919039379,-500.0,0.00031777,2]
[341474237,1730919039388,-500.0,0.00031777,2]
[341474238,1730919039398,-154.967165,0.00031777,2]
[341474239,1730919039407,-500.0,0.00031777,2]
[341474240,1730919039416,-573.0,0.00031777,2]
[341474241,1730919039428,-500.0,0.00031777,2]
[341474242,1730919039438,-500.0,0.00031777,2]
[341474243,1730919039448,-500.0,0.00031777,2]
[341474244,1730919039457,-500.0,0.00031777,2]
[341474245,1730919039467,-512.09754256,0.00031777,2]
[341474246,1730919039477,-295.4940702,0.00031777,2]
[341474249,1730919040457,-204.5059298,0.00031777,2]
[341474250,1730919040467,-500.0,0.00031777,2]
[341474251,1730919040476,-539.14474934,0.00031777,2]
[341474252,1730919040486,-500.0,0.00031777,2]
[341474253,1730919040498,-500.0,0.00031777,2]
[341474254,1730919040508,-500.0,0.00031777,2]
[341474255,1730919040516,-1281.13,0.00031777,2]
[341474256,1730919040526,-153.21816272,0.00031777,2]
[341474257,1730919040537,-346.78183728,0.00031777,2]
[341474258,1730919040547,-975.36,0.00031777,2]
[341474259,1730919040556,-500.0,0.00031777,2]
[341474260,1730919040565,-3299.77,0.00031777,2]
[341474261,1730919040577,-500.0,0.00031777,2]
[341474262,1730919040592,-1471.39,0.00031777,2]
[341474265,1730919040852,-6333.68572298,0.00031777,2]
[341474266,1730919040864,-514.80443452,0.00031777,2]
[341474300,1730919051103,-153.13958991,0.00031777,2]
[341474301,1730919051721,-329.922672,0.00031777,2]
[341474302,1730919051740,-1022.94194134,0.00031777,2]
[341474497,1730919053943,-500.0,0.00031776,2]
[341474499,1730919053953,-621.75111422,0.00031776,2]
[341474501,1730919053963,-4776.81563925,0.00031777,2]
[341474503,1730919053971,-500.0,0.00031777,2]
[341474505,1730919053982,-500.0,0.00031777,2]
[341474507,1730919053991,-500.0,0.00031777,2]
[341474509,1730919054000,-500.0,0.00031777,2]
[341474510,1730919054010,-2366.52,0.00031777,2]
[341474512,1730919054019,-578.1,0.00031777,2]
[341474513,1730919054028,-517.62598123,0.00031777,2]
[341474515,1730919054037,-500.0,0.00031777,2]
[341474517,1730919054046,-500.0,0.00031777,2]
[341474519,1730919054055,-500.0,0.00031777,2]
[341474521,1730919054064,-500.0,0.00031777,2]
[341474523,1730919054073,-1856.19,0.00031777,2]
[341474525,1730919054083,-637.52,0.00031777,2]
[341474527,1730919054093,-38409.56,0.00031777,2]
[341474529,1730919054102,-500.0,0.00031777,2]
[341474531,1730919054112,-785.0,0.00031777,2]
[341474533,1730919054122,-500.0,0.00031777,2]
[341474535,1730919054131,-855.12,0.00031777,2]
[341474537,1730919054142,-1099.81,0.00031777,2]
[341474539,1730919054151,-500.0,0.00031777,2]
[341474541,1730919054161,-500.0,0.00031777,2]
[341474543,1730919054170,-500.0,0.00031777,2]
[341474545,1730919054179,-500.0,0.00031777,2]
[341474547,1730919054189,-605.48,0.00031777,2]
[341474549,1730919054199,-500.0,0.00031777,2]
[341474551,1730919054208,-500.0,0.00031777,2]
[341474553,1730919054220,-757.26,0.00031777,2]
[341474555,1730919054229,-507.11565732,0.00031777,2]
[341474557,1730919054238,-841.41,0.00031777,2]
[341474559,1730919054248,-500.0,0.00031777,2]
[341474561,1730919054257,-6208.71,0.00031777,2]
[341474563,1730919054266,-500.0,0.00031777,2]
[341474565,1730919054278,-500.0,0.00031777,2]
[341474567,1730919054287,-818.75,0.00031777,2]
[341474569,1730919054296,-500.0,0.00031777,2]
[341474571,1730919054305,-500.0,0.00031777,2]
[341474573,1730919054315,-500.0,0.00031777,2]
[341474575,1730919054324,-867.06,0.00031777,2]
[341474577,1730919054333,-1832.9,0.00031777,2]
[341474579,1730919054343,-760.27,0.00031777,2]
[341474581,1730919054353,-3780.88,0.00031777,2]
[341474582,1730919054364,-927.43,0.00031777,2]
[341474584,1730919054374,-500.0,0.00031777,2]
[341474586,1730919054383,-6348.72,0.00031777,2]
[341474588,1730919054392,-2265.79,0.00031777,2]
[341474590,1730919054401,-1879.02,0.00031777,2]
[341474592,1730919054411,-500.0,0.00031777,2]
[341474594,1730919054421,-614.67,0.00031777,2]
[341474596,1730919054430,-574.17,0.00031777,2]
[341474598,1730919054440,-513.97,0.00031777,2]
[341474600,1730919054449,-1128.45,0.00031777,2]
[341474602,1730919054459,-500.0,0.00031777,2]
[341474604,1730919054468,-1024.06,0.00031777,2]
[341474606,1730919054478,-2243.77,0.00031777,2]
[341474608,1730919054488,-7774.5,0.00031777,2]
[341474610,1730919054497,-500.0,0.00031777,2]
[341474612,1730919054507,-9629.53,0.00031777,2]
[341474614,1730919054516,-500.0,0.00031777,2]
[341474616,1730919054525,-500.0,0.00031777,2]
[341474618,1730919054535,-500.0,0.00031777,2]
[341474620,1730919054544,-500.0,0.00031777,2]
[341474622,1730919054553,-500.0,0.00031777,2]
[341474624,1730919054562,-894.25,0.00031777,2]
[341474626,1730919054572,-736.46,0.00031777,2]
[341474628,1730919054581,-3018.63,0.00031777,2]
[341474630,1730919054590,-4055.43,0.00031777,2]
[341474632,1730919054601,-500.0,0.00031777,2]
[341474634,1730919054611,-593.69,0.00031777,2]
[341474636,1730919054620,-500.0,0.00031777,2]
[341474638,1730919054630,-500.0,0.00031777,2]
[341474640,1730919054639,-5052.65,0.00031777,2]
[341474642,1730919054648,-500.0,0.00031777,2]
[341474644,1730919054657,-3668.18,0.00031777,2]
[341474646,1730919054666,-772.54,0.00031777,2]
[341474648,1730919054675,-500.0,0.00031777,2]
[341474650,1730919054684,-500.0,0.00031777,2]
[341474652,1730919054693,-500.0,0.00031777,2]
[341474654,1730919054702,-1706.2,0.00031777,2]
[341474656,1730919054712,-500.0,0.00031777,2]
[341474658,1730919054721,-500.0,0.00031777,2]
[341474660,1730919054730,-500.0,0.00031777,2]
[341474662,1730919054739,-510.38314754,0.00031777,2]
[341474664,1730919054749,-5216.26,0.00031777,2]
[341474666,1730919054758,-3539.41,0.00031777,2]
[341474668,1730919054767,-500.0,0.00031777,2]
[341474670,1730919054776,-500.0,0.00031777,2]
[341474672,1730919054785,-6498.65,0.00031777,2]
[341474673,1730919054794,-2435.34,0.00031777,2]
[341474675,1730919054803,-500.0,0.00031777,2]
[341474677,1730919054812,-838.48,0.00031777,2]
[341474679,1730919054822,-1190.02,0.00031777,2]
[341474681,1730919054832,-500.0,0.00031777,2]
[341474683,1730919054841,-500.0,0.00031777,2]
[341474685,1730919054850,-500.0,0.00031777,2]
[341474687,1730919054860,-500.0,0.00031777,2]
[341474689,1730919054870,-794.04,0.00031777,2]
[341474691,1730919054879,-23520.8273787,0.00031777,2]
[341474815,1730919056124,-749.74,0.00031777,2]
[341474816,1730919056136,-278.0426213,0.00031777,2]
[341474817,1730919056146,-500.0,0.00031777,2]
[341474818,1730919056156,-1246.27,0.00031777,2]
[341474819,1730919056165,-1328.68,0.00031777,2]
[341474820,1730919056175,-500.0,0.00031777,2]
[341474821,1730919056184,-1294.02,0.00031777,2]
[341474822,1730919056194,-500.0,0.00031777,2]
[341474823,1730919056204,-500.0,0.00031777,2]
[341474824,1730919056213,-572.33,0.00031777,2]
[341474825,1730919056222,-622.25,0.00031777,2]
[341474826,1730919056232,-500.0,0.00031777,2]
[341474827,1730919056242,-3543.58,0.00031777,2]
[341474828,1730919056252,-500.0,0.00031777,2]
[341474829,1730919056263,-500.0,0.00031777,2]
[341474830,1730919056273,-500.0,0.00031777,2]
[341474831,1730919056284,-500.0,0.00031777,2]
[341474832,1730919056294,-639.49,0.00031777,2]
[341474833,1730919056303,-216.07,0.00031777,2]
[341474834,1730919056314,-580.28,0.00031777,2]
[341474835,1730919056323,-1520.6746377,0.00031777,2]
[341474836,1730919056413,-1236.4153623,0.00031777,2]
[341474837,1730919056422,-880.5,0.00031777,2]
[341474838,1730919056432,-500.0,0.00031777,2]
[341474839,1730919056442,-500.0,0.00031777,2]
[341474840,1730919056451,-1297.79,0.00031777,2]
[341474841,1730919056462,-500.0,0.00031777,2]
[341474842,1730919056472,-500.0,0.00031777,2]
[341474843,1730919056481,-500.0,0.00031777,2]
[341474844,1730919056491,-1049.1946377,0.00031777,2]
[341474845,1730919056502,-330.03792275,0.00031777,2]
[341474846,1730919058216,-500.0,0.00031776,2]
[341474847,1730919058226,-704.35743955,0.00031777,2]
[341474848,1730919058235,-500.0,0.00031777,2]
[341474849,1730919058244,-500.0,0.00031777,2]
[341474850,1730919058253,-1742.32,0.00031777,2]
[341474851,1730919058262,-294.6939172,0.00031777,2]
[341474852,1730919058381,-489.8460828,0.00031777,2]
[341474853,1730919058391,-500.0,0.00031777,2]
[341474854,1730919058402,-121.93368524,0.00031777,2]
[341474855,1730919058413,-378.03014542,0.00031777,2]
[341474856,1730919058424,-0.03616934,0.00031777,2]
[341474857,1730919058433,-500.0,0.00031777,2]
[341474858,1730919058442,-500.0,0.00031777,2]
[341474859,1730919058451,-2776.36,0.00031777,2]
[341474860,1730919058460,-500.0,0.00031777,2]
[341474861,1730919058470,-500.0,0.00031777,2]
[341474862,1730919058479,-2105.61856639,0.00031777,2]
[341474863,1730919121215,300.0,0.00019725,2]
[341474864,1730919499022,158.85,0.00015342,2]
[341474866,1730919760109,2009.13,0.00021481,2]
[341474867,1730919795001,250.0,0.00021,2]
[341474868,1730919796110,300.0,0.00023,2]
[341474869,1730919861659,200.19367748,0.00022885,2]
[341474870,1730919920974,187.79344974,0.00022885,2]
[341474871,1730919958220,12211.01,0.00022543,2]
[341474872,1730919958436,12211.01,0.00022905,2]
[341474873,1730919965951,200.0,0.000229,2]
[341474883,1730919978636,161.615,0.000216,5]
[341474884,1730919979162,161.672,0.0002246,3]
[341474886,1730919994721,158.51,0.00015342,2]
[341474887,1730920001412,240.74,0.0002282,2]
[341474888,1730920003863,476.84587278,0.0002282,2]
[341474889,1730920028643,-262.87,0.0002281,2]
[341474890,1730920028667,-250.0,0.00022816,2]
[341474891,1730920028689,-6425.12106382,0.0002282,2]
[341474892,1730920153085,-200.0,0.00022624,2]
[341474893,1730920153107,-790.29,0.00022639,2]
[341474894,1730920153128,-2.660308,0.00022669,2]
[341474895,1730920157866,-150.0,0.00022572,2]
[341474896,1730920157886,-197.74139729,0.00022669,2]
[341474897,1730920157908,-788.96994,0.00022691,2]
[341474898,1730920157930,-200.40170529,0.00022691,2]
[341474899,1730920157951,-5036.01,0.00022769,2]
[341474900,1730920157972,-4596.97,0.00022781,2]
[341474901,1730920157995,-2996.54,0.00022781,2]
[341474902,1730920158016,-340.19,0.00022791,2]
[341474903,1730920158037,-289.43,0.00022791,2]
[341474904,1730920158057,-4781.99611213,0.00022791,2]
[341474906,1730920172424,-415.59742502,0.00022766,2]
[341474907,1730920174113,-10710.47,0.00022754,2]
[341474908,1730920174134,-593.62257498,0.00022766,2]
[341474909,1730920174156,-1384.00388787,0.00022791,2]
[341474910,1730920174177,-9249.20529104,0.00022793,2]
[341474911,1730920230749,-250.0,0.00022694,2]
[341474912,1730920230770,-11563.58,0.00022744,2]
[341474913,1730920230790,-2000.0,0.00022756,2]
[341474914,1730920230812,-360.0,0.00022756,2]
[341474915,1730920230835,-5430.84,0.00022791,2]
[341474916,1730920230857,-14650.79470896,0.00022793,2]
[341474917,1730920230878,-1600.0,0.00022813,2]
[341474918,1730920230899,-735.42,0.00022814,2]
[341474919,1730920230921,-2009.81,0.00022814,2]
[341474920,1730920230942,-16164.79788857,0.00022814,2]
[341474921,1730920230963,-3900.1,0.00022814,2]
[341474922,1730920230983,-1727.45,0.00022814,2]
[341474923,1730920231005,-194.94105961,0.0002282,2]
[341474924,1730920231027,-5938.8230634,0.0002282,2]
[341474925,1730920231047,-9810.05,0.00022985,2]
[341474926,1730920231069,-276.34,0.00023088,2]
[341474927,1730920231089,-490.87,0.00023113,2]
[341474928,1730920231109,-500.0,0.00023122,2]
[341474929,1730920231130,-171.33182233,0.00023185,2]
[341474930,1730920231150,-20469.56,0.0002325,2]
[341474931,1730920231171,-150.99,0.0002325,2]
[341474932,1730920231191,-1000.0,0.00023263,2]
[341474933,1730920231212,-2064.66,0.00023264,2]
[341474934,1730920231233,-2245.18,0.00023264,2]
[341474935,1730920231255,-12211.01,0.00023267,2]
[341474936,1730920231277,-250.0,0.00023276,2]
[341474937,1730920231298,-1852.42,0.00023276,2]
[341474938,1730920231319,-600.75,0.00023276,3]
[341474939,1730920231340,-188.49,0.00023276,3]
[341474940,1730920231360,-565.49,0.00023276,3]
[341474941,1730920231381,-500.0,0.00023285,2]
[341474942,1730920231401,-500.0,0.00023285,2]
[341474943,1730920231423,-500.0,0.00023285,2]
[341474944,1730920231444,-500.0,0.00023285,2]
[341474945,1730920231464,-500.0,0.00023285,2]
[341474946,1730920231485,-500.0,0.00023285,2]
[341474947,1730920231507,-238.26464392,0.00023285,2]
[341474948,1730920231527,-500.0,0.00023285,2]
[341474949,1730920231548,-500.0,0.00023285,2]
[341474950,1730920231568,-500.0,0.00023285,2]
[341474951,1730920231590,-500.0,0.00023285,2]
[341474952,1730920231612,-500.0,0.00023285,2]
[341474953,1730920231634,-500.0,0.00023285,2]
[341474954,1730920231654,-500.0,0.00023285,2]
[341474955,1730920231675,-500.0,0.00023285,2]
[341474956,1730920231695,-500.0,0.00023285,2]
[341474957,1730920231717,-500.0,0.00023285,2]
[341474958,1730920231737,-500.0,0.00023285,2]
[341474959,1730920231758,-500.0,0.00023285,2]
[341474960,1730920231778,-500.0,0.00023285,2]
[341474961,1730920231800,-500.0,0.00023285,2]
[341474962,1730920231822,-500.0,0.00023285,2]
[341474963,1730920231843,-500.0,0.00023285,2]
[341474964,1730920231865,-500.0,0.00023285,2]
[341474965,1730920231886,-500.0,0.00023285,2]
[341474966,1730920231907,-500.0,0.00023285,2]
[341474967,1730920231928,-500.0,0.00023285,2]
[341474968,1730920231949,-500.0,0.00023285,2]
[341474969,1730920231970,-500.0,0.00023285,2]
[341474970,1730920231991,-442.67871648,0.00023285,2]
[341474971,1730920232012,-500.0,0.00023285,2]
[341474972,1730920232034,-500.0,0.00023285,2]
[341474973,1730920232057,-500.0,0.00023285,2]
[341474974,1730920232080,-500.0,0.00023285,2]
[341474975,1730920232101,-500.0,0.00023285,2]
[341474976,1730920232122,-500.0,0.00023285,2]
[341474977,1730920232144,-535.55769502,0.00023285,2]
[341474978,1730920232165,-197.12859075,0.00023285,2]
[341474979,1730920232187,-500.0,0.00023285,2]
[341474980,1730920232210,-500.0,0.00023285,2]
[341474981,1730920232233,-500.0,0.00023285,2]
[341474982,1730920232256,-500.0,0.00023285,2]
[341474984,1730920232278,-500.0,0.00023285,2]
[341474985,1730920232300,-500.0,0.00023285,2]
[341474986,1730920232322,-500.0,0.00023285,2]
[341474987,1730920232344,-500.0,0.00023285,2]
[341474988,1730920232366,-500.0,0.00023285,2]
[341474989,1730920232386,-1900.82,0.00023286,2]
[341474990,1730920232407,-37228.78,0.00023286,2]
[341474993,1730920232429,-161.693,0.0002332,7]
[341474996,1730920232449,-500.0,0.00023365,2]
[341474999,1730920232471,-221.57,0.00023415,2]
[341475002,1730920232491,-180.53,0.00023451,2]
[341475005,1730920232510,-164.17133252,0.0002357,2]
[341475008,1730920232532,-200.24,0.00023619,3]
[341475009,1730920232555,-12211.01,0.00023629,2]
[341475010,1730920232578,-1118.0,0.00023634,2]
[341475011,1730920232599,-2009.13,0.00023745,2]
[341475012,1730920232622,-532.75,0.00023751,2]
[341475013,1730920232643,-474.0,0.00023758,2]
[341475014,1730920232664,-532.75,0.00023764,2]
[341475015,1730920232684,-532.75,0.00023776,2]
[341475016,1730920232707,-532.75,0.00023789,2]
[341475017,1730920232726,-164.14,0.00023792,2]
[341475018,1730920232748,-532.75,0.00023801,2]
[341475019,1730920232769,-532.75,0.00023814,2]
[341475020,1730920232791,-532.75,0.00023826,2]
[341475021,1730920232812,-532.75,0.00023839,2]
[341475023,1730920232834,-532.75,0.00023851,2]
[341475026,1730920232855,-532.75,0.00023864,2]
[341475029,1730920232876,-532.75,0.00023876,2]
[341475032,1730920232897,-532.75,0.00023889,2]
[341475034,1730920232918,-532.75,0.00023901,2]
[341475035,1730920232940,-532.75,0.00023914,2]
[341475036,1730920232961,-532.75,0.00023926,2]
[341475037,1730920232983,-161.624,0.0002393,2]
[341475038,1730920233005,-532.75,0.00023939,2]
[341475039,1730920233027,-532.75,0.00023951,2]
[341475040,1730920233048,-532.75,0.00023964,2]
[341475041,1730920233071,-532.75,0.00023976,2]
[341475042,1730920233096,-532.75,0.00023989,2]
[341475043,1730920233118,-12211.01,0.00023991,2]
[341475044,1730920233139,-490.87,0.00024025,2]
[341475045,1730920233161,-2834.69,0.00024042,2]
[341475046,1730920233183,-8411.76,0.00024042,2]
[341475047,1730920233205,-2751.0,0.00024139,2]
[341475048,1730920233225,-151.38,0.00024179,2]
[341475049,1730920233249,-162.222,0.0002418,60]
[341475050,1730920233271,-640.0,0.00024195,2]
[341475051,1730920233293,-276.34,0.00024243,2]
[341475052,1730920233316,-12211.01,0.00024354,2]
[341475053,1730920233338,-376.98,0.00024646,3]
[341475054,1730920233360,-200.0,0.00024658,2]
[341475055,1730920233380,-200.0,0.00024658,2]
[341475056,1730920233593,-1500.0,0.00024658,2]
[341475057,1730920233632,-228.11,0.00024658,2]
[341475058,1730920233653,-1131.11,0.00024658,4]
[341475059,1730920233674,-171.33182231,0.00024714,2]
[341475060,1730920233698,-12211.01,0.00024716,2]
[341475061,1730920233719,-412.95,0.00024877,30]
[341475062,1730920233741,-500.0,0.00024932,2]
[341475063,1730920233762,-500.0,0.00024932,2]
[341475064,1730920233783,-490.87,0.00024937,2]
[341475065,1730920233804,-400.48,0.00024989,3]
[341475066,1730920233826,-350.0,0.00025,2]
[341475067,1730920234308,-199.01,0.00025022,2]
[341475068,1730920234318,-1106.9478422,0.00025078,2]
[341475069,1730920234332,-11104.0621578,0.00025078,2]
[341475070,1730920234342,-24130.0,0.00025177,2]
[341475071,1730920234351,-685.09,0.00025285,2]
[341475072,1730920234361,-276.34,0.00025397,2]
[341475073,1730920234370,-360.0,0.00025601,2]
[341475074,1730920234380,-490.87,0.0002585,2]
[341475075,1730920234389,-322.35,0.00025881,2]
[341475076,1730920234398,-2009.13,0.00026009,2]
[341475077,1730920234407,-171.33182231,0.00026242,2]
[341475078,1730920234417,-221.57,0.00026342,120]
[341475079,1730920234426,-685.09,0.00026549,2]
[341475080,1730920234435,-276.34,0.00026551,2]
[341475081,1730920234445,-490.87,0.00026762,2]
[341475082,1730920234454,-322.35,0.00026797,2]
[341475083,1730920234464,-2400.0,0.000268,9]
[341475084,1730920234473,-1026.07810814,0.00026832,2]
[341475085,1730920234483,-4800.0,0.000269,9]
[341475086,1730920234492,-800.0,0.00026986,120]
[341475087,1730920234502,-800.0,0.00026986,120]
[341475088,1730920234512,-467.08,0.00026986,120]
[341475089,1730920234522,-400.0,0.00027,2]
[341475090,1730920234532,-640.0,0.0002722,2]
[341475091,1730920234541,-285.28916421,0.00027297,2]
[341475092,1730920234551,-177.70967259,0.00027297,2]
[341475093,1730920234560,-927.59165322,0.00027387,2]
[341475094,1730920234569,-500.0,0.00027397,2]
[341475095,1730920234580,-500.0,0.00027397,2]
[341475096,1730920234590,-189.70172363,0.00027397,2]
[341475097,1730920234600,-500.0,0.00027397,2]
[341475098,1730920234609,-500.0,0.00027397,2]
[341475099,1730920234620,-500.0,0.00027397,2]
[341475100,1730920234630,-500.0,0.00027397,2]
[341475101,1730920234640,-500.0,0.00027397,2]
[341475102,1730920234650,-500.0,0.00027397,2]
[341475103,1730920234659,-500.0,0.00027397,2]
[341475104,1730920234670,-500.0,0.00027397,2]
[341475105,1730920234679,-500.0,0.00027397,2]
[341475106,1730920234688,-500.0,0.00027397,2]
[341475107,1730920234699,-500.0,0.00027397,2]
[341475108,1730920234709,-2920.66,0.00027397,2]
[341475109,1730920234719,-500.0,0.00027397,2]
[341475110,1730920234728,-500.0,0.00027397,2]
[341475111,1730920234738,-614.25,0.00027397,2]
[341475112,1730920234747,-574.18,0.00027397,2]
[341475113,1730920234757,-500.0,0.00027397,2]
[341475114,1730920234766,-500.0,0.00027397,2]
[341475115,1730920234776,-500.0,0.00027397,2]
[341475116,1730920234786,-500.0,0.00027397,2]
[341475117,1730920234797,-1205.75,0.00027397,2]
[341475118,1730920234806,-750.76,0.00027397,2]
[341475119,1730920234815,-500.0,0.00027397,2]
[341475120,1730920234825,-500.0,0.00027397,2]
[341475121,1730920234834,-500.0,0.00027397,2]
[341475122,1730920234843,-500.0,0.00027397,2]
[341475123,1730920234852,-500.0,0.00027397,2]
[341475124,1730920234862,-500.0,0.00027397,2]
[341475125,1730920234871,-500.0,0.00027397,2]
[341475126,1730920234880,-500.0,0.00027397,2]
[341475127,1730920234890,-997.57,0.00027397,2]
[341475128,1730920234899,-500.0,0.00027397,2]
[341475129,1730920234909,-1062.35,0.00027397,2]
[341475130,1730920234918,-500.0,0.00027397,2]
[341475131,1730920234927,-500.0,0.00027397,2]
[341475132,1730920234937,-500.0,0.00027397,2]
[341475133,1730920234946,-500.0,0.00027397,2]
[341475134,1730920234955,-500.0,0.00027397,2]
[341475135,1730920234965,-500.0,0.00027397,2]